[Event "Titled Tuesday Blitz August 16 Early 2022"]
[White "Leve, Nitai"]
[Black "Matyukov, Petr"]
[WhiteFideId "2006898"]
[BlackFideId "4103688"]
[WhiteElo "2144"]
[BlackElo "2278"]
[Result "1-0"]
[Round "04"]
[TimeControl "180+2"]
[Date "2022.08.18"]
[WhiteClock "0:00:00"]
[BlackClock "0:00:00"]

1. e4 {[%clk 0:00:00]}  c5 {[%clk 0:00:00]} 2. Nf3 {[%clk 0:00:00]}  g6 {[%clk 0:00:00]} 3. d4 {[%clk 0:00:00]}  cxd4 {[%clk 0:00:00]} 4. Nxd4 {[%clk 0:00:00]}  Nc6 {[%clk 0:00:00]} 5. Nc3 {[%clk 0:00:00]}  Bg7 {[%clk 0:00:00]} 6. Be3 {[%clk 0:00:00]}  Nf6 {[%clk 0:00:00]} 7. Be2 {[%clk 0:00:00]}  O-O {[%clk 0:00:00]} 8. f4 {[%clk 0:00:00]}  Qa5 {[%clk 0:00:00]} 9. e5 {[%clk 0:00:00]}  Ne4 {[%clk 0:00:00]} 10. Nb3 {[%clk 0:00:00]}  Nxc3 {[%clk 0:00:00]} 11. bxc3 {[%clk 0:00:00]}  Qxc3+ {[%clk 0:00:00]} 12. Bd2 {[%clk 0:00:00]}  Qb2 {[%clk 0:00:00]} 13. a3 {[%clk 0:00:00]}  d6 {[%clk 0:00:00]} 14. exd6 {[%clk 0:00:00]}  exd6 {[%clk 0:00:00]} 15. O-O {[%clk 0:00:00]}  Nd4 {[%clk 0:00:00]} 16. Rb1 {[%clk 0:00:00]}  Qxa3 {[%clk 0:00:00]} 17. Nxd4 {[%clk 0:00:00]}  Bxd4+ {[%clk 0:00:00]} 18. Kh1 {[%clk 0:00:00]}  Bg7 {[%clk 0:00:00]} 19. Bb4 {[%clk 0:00:00]}  Qa4 {[%clk 0:00:00]} 20. Qxd6 {[%clk 0:00:00]}  Qxc2 {[%clk 0:00:00]} 21. Bf3 {[%clk 0:00:00]}  Re8 {[%clk 0:00:00]} 22. Rbc1 {[%clk 0:00:00]}  Qf5 {[%clk 0:00:00]} 23. Rc7 {[%clk 0:00:00]}  Bf8 {[%clk 0:00:00]} 24. Qd4 {[%clk 0:00:00]}  Bg7 {[%clk 0:00:00]} 25. Qd2 {[%clk 0:00:00]}  Be6 {[%clk 0:00:00]} 26. Rxb7 {[%clk 0:00:00]}  Rad8 {[%clk 0:00:00]} 27. Qf2 {[%clk 0:00:00]}  Qxf4 {[%clk 0:00:00]} 28. Ba5 {[%clk 0:00:00]}  Bd4 {[%clk 0:00:00]} 29. Qg3 {[%clk 0:00:00]}  Qxg3 {[%clk 0:00:00]} 30. hxg3 {[%clk 0:00:00]}  Rd7 {[%clk 0:00:00]} 31. Rbb1 {[%clk 0:00:00]}  Bf6 {[%clk 0:00:00]} 32. Bc6 {[%clk 0:00:00]}  Bg7 {[%clk 0:00:00]} 33. Bxd7 {[%clk 0:00:00]}  Bxd7 {[%clk 0:00:00]} 34. Rfe1 {[%clk 0:00:00]}  Rc8 {[%clk 0:00:00]} 35. Red1 {[%clk 0:00:00]}  Bg4 {[%clk 0:00:00]} 36. Rd8+ {[%clk 0:00:00]}  Rxd8 {[%clk 0:00:00]} 37. Bxd8 {[%clk 0:00:00]}  Bf5 {[%clk 0:00:00]} 38. Rb8 {[%clk 0:00:00]}  Bf8 {[%clk 0:00:00]} 39. Be7 {[%clk 0:00:00]}  Kg7 {[%clk 0:00:00]} 40. Bxf8+ {[%clk 0:00:00]}  Kf6 {[%clk 0:00:00]} 41. Bc5 {[%clk 0:00:00]} 1-0


[Site "https://www.chess.com"]

[Event "Titled Tuesday Blitz August 16 Early 2022"]
[White "Mahdavi, Reza"]
[Black "Gubajdullin, Alexei"]
[WhiteFideId "12595926"]
[BlackFideId "4141202"]
[WhiteElo "2226"]
[BlackElo "2214"]
[Result "0-1"]
[Round "04"]
[TimeControl "180+2"]
[Date "2022.08.18"]
[WhiteClock "0:00:00"]
[BlackClock "0:00:00"]

1. e4 {[%clk 0:00:00]}  c6 {[%clk 0:00:00]} 2. d4 {[%clk 0:00:00]}  d5 {[%clk 0:00:00]} 3. e5 {[%clk 0:00:00]}  Bf5 {[%clk 0:00:00]} 4. Nd2 {[%clk 0:00:00]}  e6 {[%clk 0:00:00]} 5. Nb3 {[%clk 0:00:00]}  Nd7 {[%clk 0:00:00]} 6. Nf3 {[%clk 0:00:00]}  Ne7 {[%clk 0:00:00]} 7. Be2 {[%clk 0:00:00]}  h6 {[%clk 0:00:00]} 8. a4 {[%clk 0:00:00]}  Bh7 {[%clk 0:00:00]} 9. a5 {[%clk 0:00:00]}  a6 {[%clk 0:00:00]} 10. Bd2 {[%clk 0:00:00]}  Ng6 {[%clk 0:00:00]} 11. h4 {[%clk 0:00:00]}  Be7 {[%clk 0:00:00]} 12. g3 {[%clk 0:00:00]}  O-O {[%clk 0:00:00]} 13. h5 {[%clk 0:00:00]}  Nh8 {[%clk 0:00:00]} 14. Nh2 {[%clk 0:00:00]}  f6 {[%clk 0:00:00]} 15. f4 {[%clk 0:00:00]}  fxe5 {[%clk 0:00:00]} 16. fxe5 {[%clk 0:00:00]}  Bg5 {[%clk 0:00:00]} 17. Qc1 {[%clk 0:00:00]}  Nf7 {[%clk 0:00:00]} 18. Nf3 {[%clk 0:00:00]}  Bxd2+ {[%clk 0:00:00]} 19. Qxd2 {[%clk 0:00:00]}  c5 {[%clk 0:00:00]} 20. Nxc5 {[%clk 0:00:00]}  Nxc5 {[%clk 0:00:00]} 21. dxc5 {[%clk 0:00:00]}  Qc7 {[%clk 0:00:00]} 22. Qd4 {[%clk 0:00:00]}  Bxc2 {[%clk 0:00:00]} 23. O-O {[%clk 0:00:00]}  Be4 {[%clk 0:00:00]} 24. Nd2 {[%clk 0:00:00]}  Nxe5 {[%clk 0:00:00]} 25. Nxe4 {[%clk 0:00:00]}  Nc6 {[%clk 0:00:00]} 26. Qe3 {[%clk 0:00:00]}  dxe4 {[%clk 0:00:00]} 27. Bc4 {[%clk 0:00:00]}  Qe5 {[%clk 0:00:00]} 28. Rae1 {[%clk 0:00:00]}  Nd4 {[%clk 0:00:00]} 29. Rf4 {[%clk 0:00:00]}  Rxf4 {[%clk 0:00:00]} 30. gxf4 {[%clk 0:00:00]}  Qxc5 {[%clk 0:00:00]} 31. Ba2 {[%clk 0:00:00]}  Rd8 {[%clk 0:00:00]} 32. Kg2 {[%clk 0:00:00]}  Qc2+ {[%clk 0:00:00]} 33. Kh3 {[%clk 0:00:00]}  Qxb2 {[%clk 0:00:00]} 34. Bc4 {[%clk 0:00:00]}  Qb4 {[%clk 0:00:00]} 35. Rc1 {[%clk 0:00:00]}  Kh8 {[%clk 0:00:00]} 36. Kg4 {[%clk 0:00:00]}  Qb2 {[%clk 0:00:00]} 37. Kh3 {[%clk 0:00:00]}  Nf5 {[%clk 0:00:00]} 38. Qc3 {[%clk 0:00:00]}  Qf2 {[%clk 0:00:00]} 39. Rf1 {[%clk 0:00:00]}  Qh4+ {[%clk 0:00:00]} 40. Kg2 {[%clk 0:00:00]}  e3 {[%clk 0:00:00]} 41. Qe1 {[%clk 0:00:00]}  Qg4+ {[%clk 0:00:00]} 42. Kh2 {[%clk 0:00:00]}  Rd2+ {[%clk 0:00:00]} 43. Kh1 {[%clk 0:00:00]}  Qg2# {[%clk 0:00:00]} 0-1


[Site "https://www.chess.com"]

[Event "Titled Tuesday Blitz August 16 Early 2022"]
[White "Malyi, Viacheslav"]
[Black "Goldin, Roman"]
[WhiteFideId "14123983"]
[BlackFideId "2803860"]
[WhiteElo "2190"]
[BlackElo "2312"]
[Result "1-0"]
[Round "04"]
[TimeControl "180+2"]
[Date "2022.08.18"]
[WhiteClock "0:00:00"]
[BlackClock "0:00:00"]

1. e4 {[%clk 0:00:00]}  Nc6 {[%clk 0:00:00]} 2. Nf3 {[%clk 0:00:00]}  e5 {[%clk 0:00:00]} 3. Bb5 {[%clk 0:00:00]}  a6 {[%clk 0:00:00]} 4. Ba4 {[%clk 0:00:00]}  d6 {[%clk 0:00:00]} 5. O-O {[%clk 0:00:00]}  Ne7 {[%clk 0:00:00]} 6. h3 {[%clk 0:00:00]}  g6 {[%clk 0:00:00]} 7. c3 {[%clk 0:00:00]}  Bg7 {[%clk 0:00:00]} 8. d4 {[%clk 0:00:00]}  O-O {[%clk 0:00:00]} 9. Re1 {[%clk 0:00:00]}  h6 {[%clk 0:00:00]} 10. Be3 {[%clk 0:00:00]}  Kh7 {[%clk 0:00:00]} 11. Nbd2 {[%clk 0:00:00]}  f5 {[%clk 0:00:00]} 12. dxe5 {[%clk 0:00:00]}  f4 {[%clk 0:00:00]} 13. exd6 {[%clk 0:00:00]}  fxe3 {[%clk 0:00:00]} 14. dxe7 {[%clk 0:00:00]}  exf2+ {[%clk 0:00:00]} 15. Kxf2 {[%clk 0:00:00]}  Qxe7 {[%clk 0:00:00]} 16. Bxc6 {[%clk 0:00:00]}  Qc5+ {[%clk 0:00:00]} 17. Kf1 {[%clk 0:00:00]}  Qxc6 {[%clk 0:00:00]} 18. Qe2 {[%clk 0:00:00]}  Be6 {[%clk 0:00:00]} 19. Kg1 {[%clk 0:00:00]}  Qb6+ {[%clk 0:00:00]} 20. Kh1 {[%clk 0:00:00]}  Qxb2 {[%clk 0:00:00]} 21. Rab1 {[%clk 0:00:00]}  Qxa2 {[%clk 0:00:00]} 22. Rxb7 {[%clk 0:00:00]}  Rad8 {[%clk 0:00:00]} 23. Rxc7 {[%clk 0:00:00]}  Rf7 {[%clk 0:00:00]} 24. Rxf7 {[%clk 0:00:00]}  Bxf7 {[%clk 0:00:00]} 25. e5 {[%clk 0:00:00]}  Be6 {[%clk 0:00:00]} 26. Nd4 {[%clk 0:00:00]}  a5 {[%clk 0:00:00]} 27. N2f3 {[%clk 0:00:00]}  Bc4 {[%clk 0:00:00]} 28. Qxa2 {[%clk 0:00:00]}  Bxa2 {[%clk 0:00:00]} 29. e6 {[%clk 0:00:00]}  a4 {[%clk 0:00:00]} 30. Ne5 {[%clk 0:00:00]}  a3 {[%clk 0:00:00]} 31. Nf7 {[%clk 0:00:00]}  Rxd4 {[%clk 0:00:00]} 32. cxd4 {[%clk 0:00:00]}  Bxd4 {[%clk 0:00:00]} 33. Nd6 {[%clk 0:00:00]}  Bxe6 {[%clk 0:00:00]} 34. Nb5 {[%clk 0:00:00]}  Bb2 {[%clk 0:00:00]} 35. Nxa3 {[%clk 0:00:00]}  Bxh3 {[%clk 0:00:00]} 36. Nc4 {[%clk 0:00:00]}  Bxg2+ {[%clk 0:00:00]} 37. Kxg2 {[%clk 0:00:00]}  Bf6 {[%clk 0:00:00]} 38. Re6 {[%clk 0:00:00]}  Kg7 {[%clk 0:00:00]} 39. Rc6 {[%clk 0:00:00]}  h5 {[%clk 0:00:00]} 40. Kf3 {[%clk 0:00:00]}  Bd8 {[%clk 0:00:00]} 41. Ne5 {[%clk 0:00:00]} 1-0


[Site "https://www.chess.com"]

[Event "Titled Tuesday Blitz August 16 Early 2022"]
[White "Melikyan, Gnel"]
[Black "Balabayeva, Xeniya"]
[WhiteFideId "54109990"]
[BlackFideId "13719688"]
[WhiteElo "1772"]
[BlackElo "1895"]
[Result "1-0"]
[Round "04"]
[TimeControl "180+2"]
[Date "2022.08.18"]
[WhiteClock "0:00:00"]
[BlackClock "0:00:00"]

1. e4 {[%clk 0:00:00]}  c6 {[%clk 0:00:00]} 2. Nf3 {[%clk 0:00:00]}  d5 {[%clk 0:00:00]} 3. Nc3 {[%clk 0:00:00]}  dxe4 {[%clk 0:00:00]} 4. Nxe4 {[%clk 0:00:00]}  Nf6 {[%clk 0:00:00]} 5. Qe2 {[%clk 0:00:00]}  Nxe4 {[%clk 0:00:00]} 6. Qxe4 {[%clk 0:00:00]}  Nd7 {[%clk 0:00:00]} 7. Bc4 {[%clk 0:00:00]}  Nf6 {[%clk 0:00:00]} 8. Ne5 {[%clk 0:00:00]}  e6 {[%clk 0:00:00]} 9. Qe2 {[%clk 0:00:00]}  b5 {[%clk 0:00:00]} 10. Bb3 {[%clk 0:00:00]}  Qc7 {[%clk 0:00:00]} 11. d4 {[%clk 0:00:00]}  a6 {[%clk 0:00:00]} 12. Bf4 {[%clk 0:00:00]}  Bd6 {[%clk 0:00:00]} 13. O-O {[%clk 0:00:00]}  O-O {[%clk 0:00:00]} 14. c4 {[%clk 0:00:00]}  Nd7 {[%clk 0:00:00]} 15. c5 {[%clk 0:00:00]}  Bxe5 {[%clk 0:00:00]} 16. Bxe5 {[%clk 0:00:00]}  Nxe5 {[%clk 0:00:00]} 17. Qxe5 {[%clk 0:00:00]}  Qxe5 {[%clk 0:00:00]} 18. dxe5 {[%clk 0:00:00]}  a5 {[%clk 0:00:00]} 19. a4 {[%clk 0:00:00]}  Ba6 {[%clk 0:00:00]} 20. Rfd1 {[%clk 0:00:00]}  Rfb8 {[%clk 0:00:00]} 21. Rd6 {[%clk 0:00:00]}  Rc8 {[%clk 0:00:00]} 22. Bc2 {[%clk 0:00:00]}  bxa4 {[%clk 0:00:00]} 23. Bxa4 {[%clk 0:00:00]}  Bb5 {[%clk 0:00:00]} 24. Bc2 {[%clk 0:00:00]}  g6 {[%clk 0:00:00]} 25. b3 {[%clk 0:00:00]}  Kg7 {[%clk 0:00:00]} 26. f4 {[%clk 0:00:00]}  Rc7 {[%clk 0:00:00]} 27. Kf2 {[%clk 0:00:00]}  Rca7 {[%clk 0:00:00]} 28. h3 {[%clk 0:00:00]}  a4 {[%clk 0:00:00]} 29. bxa4 {[%clk 0:00:00]}  Bxa4 {[%clk 0:00:00]} 30. Rxa4 {[%clk 0:00:00]}  Rxa4 {[%clk 0:00:00]} 31. Bxa4 {[%clk 0:00:00]}  Rxa4 {[%clk 0:00:00]} 32. Ke3 {[%clk 0:00:00]}  Ra6 {[%clk 0:00:00]} 33. h4 {[%clk 0:00:00]}  h5 {[%clk 0:00:00]} 34. g3 {[%clk 0:00:00]}  Kf8 {[%clk 0:00:00]} 35. Kf3 {[%clk 0:00:00]}  Ke7 {[%clk 0:00:00]} 36. Kg2 {[%clk 0:00:00]}  Ke8 {[%clk 0:00:00]} 37. Kh3 {[%clk 0:00:00]}  Ke7 {[%clk 0:00:00]} 38. Rd3 {[%clk 0:00:00]}  Ra5 {[%clk 0:00:00]} 39. Rc3 {[%clk 0:00:00]}  Kf8 {[%clk 0:00:00]} 40. g4 {[%clk 0:00:00]}  hxg4+ {[%clk 0:00:00]} 41. Kxg4 {[%clk 0:00:00]}  Kg7 {[%clk 0:00:00]} 42. h5 {[%clk 0:00:00]}  gxh5+ {[%clk 0:00:00]} 43. Kxh5 {[%clk 0:00:00]}  Kf8 {[%clk 0:00:00]} 44. Kh6 {[%clk 0:00:00]}  Ke7 {[%clk 0:00:00]} 45. Kg5 {[%clk 0:00:00]}  Ra1 {[%clk 0:00:00]} 46. Kg4 {[%clk 0:00:00]}  Rg1+ {[%clk 0:00:00]} 47. Kf3 {[%clk 0:00:00]}  Rf1+ {[%clk 0:00:00]} 48. Ke4 {[%clk 0:00:00]}  Re1+ {[%clk 0:00:00]} 49. Kd4 {[%clk 0:00:00]}  Rf1 {[%clk 0:00:00]} 50. Ke3 {[%clk 0:00:00]}  Re1+ {[%clk 0:00:00]} 51. Kf2 {[%clk 0:00:00]}  Ra1 {[%clk 0:00:00]} 52. Ke2 {[%clk 0:00:00]}  Rb1 {[%clk 0:00:00]} 53. Kd2 {[%clk 0:00:00]}  Rb4 {[%clk 0:00:00]} 54. Ke3 {[%clk 0:00:00]}  Ra4 {[%clk 0:00:00]} 55. Rb3 {[%clk 0:00:00]}  Rc4 {[%clk 0:00:00]} 56. Rb7+ {[%clk 0:00:00]}  Kf8 {[%clk 0:00:00]} 57. Kd3 {[%clk 0:00:00]}  Rxc5 {[%clk 0:00:00]} 58. Rc7 {[%clk 0:00:00]}  Rd5+ {[%clk 0:00:00]} 59. Ke4 {[%clk 0:00:00]}  c5 {[%clk 0:00:00]} 60. Ke3 {[%clk 0:00:00]}  Kg7 {[%clk 0:00:00]} 61. Kf3 {[%clk 0:00:00]}  Kg6 {[%clk 0:00:00]} 62. Ke4 {[%clk 0:00:00]}  Rd4+ {[%clk 0:00:00]} 63. Ke3 {[%clk 0:00:00]}  Rd5 {[%clk 0:00:00]} 64. Ke4 {[%clk 0:00:00]}  Rd4+ {[%clk 0:00:00]} 65. Ke3 {[%clk 0:00:00]} 1-0


[Site "https://www.chess.com"]

[Event "Titled Tuesday Blitz August 16 Early 2022"]
[White "Mika, Tomasz"]
[Black "Dauner, Benedikt"]
[WhiteFideId "1132970"]
[BlackFideId "16225899"]
[WhiteElo "2126"]
[BlackElo "2256"]
[Result "1-0"]
[Round "04"]
[TimeControl "180+2"]
[Date "2022.08.18"]
[WhiteClock "0:00:00"]
[BlackClock "0:00:00"]

1. c4 {[%clk 0:00:00]}  a6 {[%clk 0:00:00]} 2. g3 {[%clk 0:00:00]}  b5 {[%clk 0:00:00]} 3. Bg2 {[%clk 0:00:00]}  Ra7 {[%clk 0:00:00]} 4. b3 {[%clk 0:00:00]}  Bb7 {[%clk 0:00:00]} 5. Nf3 {[%clk 0:00:00]}  e6 {[%clk 0:00:00]} 6. Bb2 {[%clk 0:00:00]}  Nf6 {[%clk 0:00:00]} 7. O-O {[%clk 0:00:00]}  Be7 {[%clk 0:00:00]} 8. d4 {[%clk 0:00:00]}  O-O {[%clk 0:00:00]} 9. Nc3 {[%clk 0:00:00]}  b4 {[%clk 0:00:00]} 10. Na4 {[%clk 0:00:00]}  d6 {[%clk 0:00:00]} 11. Qc2 {[%clk 0:00:00]}  Nbd7 {[%clk 0:00:00]} 12. c5 {[%clk 0:00:00]}  Be4 {[%clk 0:00:00]} 13. Qc4 {[%clk 0:00:00]}  a5 {[%clk 0:00:00]} 14. Nd2 {[%clk 0:00:00]}  Bxg2 {[%clk 0:00:00]} 15. Kxg2 {[%clk 0:00:00]}  dxc5 {[%clk 0:00:00]} 16. dxc5 {[%clk 0:00:00]}  Nxc5 {[%clk 0:00:00]} 17. Nxc5 {[%clk 0:00:00]}  Qxd2 {[%clk 0:00:00]} 18. Nd3 {[%clk 0:00:00]}  Qg5 {[%clk 0:00:00]} 19. Ne5 {[%clk 0:00:00]}  Bd6 {[%clk 0:00:00]} 20. Nc6 {[%clk 0:00:00]}  Raa8 {[%clk 0:00:00]} 21. e4 {[%clk 0:00:00]}  Qc5 {[%clk 0:00:00]} 22. e5 {[%clk 0:00:00]}  Qxc4 {[%clk 0:00:00]} 23. bxc4 {[%clk 0:00:00]}  Ne4 {[%clk 0:00:00]} 24. Rfe1 {[%clk 0:00:00]}  Nc5 {[%clk 0:00:00]} 25. exd6 {[%clk 0:00:00]}  cxd6 {[%clk 0:00:00]} 26. Red1 {[%clk 0:00:00]}  Nb7 {[%clk 0:00:00]} 27. Rd2 {[%clk 0:00:00]}  Rfe8 {[%clk 0:00:00]} 28. Nd4 {[%clk 0:00:00]}  Rac8 {[%clk 0:00:00]} 29. Rc1 {[%clk 0:00:00]}  a4 {[%clk 0:00:00]} 30. Nb5 {[%clk 0:00:00]}  a3 {[%clk 0:00:00]} 31. Bd4 {[%clk 0:00:00]}  d5 {[%clk 0:00:00]} 32. c5 {[%clk 0:00:00]}  e5 {[%clk 0:00:00]} 33. Ba1 {[%clk 0:00:00]}  Rxc5 {[%clk 0:00:00]} 34. Rxc5 {[%clk 0:00:00]}  Nxc5 {[%clk 0:00:00]} 35. Rxd5 {[%clk 0:00:00]}  b3 {[%clk 0:00:00]} 36. Rxc5 {[%clk 0:00:00]}  b2 {[%clk 0:00:00]} 37. Bxb2 {[%clk 0:00:00]}  axb2 {[%clk 0:00:00]} 38. Nc3 {[%clk 0:00:00]}  Rb8 {[%clk 0:00:00]} 39. Rxe5 {[%clk 0:00:00]}  f6 {[%clk 0:00:00]} 40. Re1 {[%clk 0:00:00]}  Rc8 {[%clk 0:00:00]} 41. Ne2 {[%clk 0:00:00]}  Rc2 {[%clk 0:00:00]} 42. Kf3 {[%clk 0:00:00]}  Kf7 {[%clk 0:00:00]} 43. Rb1 {[%clk 0:00:00]}  g5 {[%clk 0:00:00]} 44. Ke3 {[%clk 0:00:00]}  h5 {[%clk 0:00:00]} 45. Kd3 {[%clk 0:00:00]}  Rc8 {[%clk 0:00:00]} 46. Rxb2 {[%clk 0:00:00]}  Kg6 {[%clk 0:00:00]} 47. a4 {[%clk 0:00:00]}  Kf5 {[%clk 0:00:00]} 48. h3 {[%clk 0:00:00]}  Rd8+ {[%clk 0:00:00]} 49. Ke3 {[%clk 0:00:00]}  Rc8 {[%clk 0:00:00]} 50. a5 {[%clk 0:00:00]}  g4 {[%clk 0:00:00]} 51. hxg4+ {[%clk 0:00:00]}  hxg4 {[%clk 0:00:00]} 52. a6 {[%clk 0:00:00]}  Re8+ {[%clk 0:00:00]} 53. Kd3 {[%clk 0:00:00]}  Ra8 {[%clk 0:00:00]} 54. Ra2 {[%clk 0:00:00]}  Ra7 {[%clk 0:00:00]} 55. Nd4+ {[%clk 0:00:00]}  Kg5 {[%clk 0:00:00]} 56. Kc4 {[%clk 0:00:00]}  Ra8 {[%clk 0:00:00]} 57. Nc6 {[%clk 0:00:00]}  f5 {[%clk 0:00:00]} 58. a7 {[%clk 0:00:00]}  f4 {[%clk 0:00:00]} 59. gxf4+ {[%clk 0:00:00]}  Kh4 {[%clk 0:00:00]} 60. Kc5 {[%clk 0:00:00]}  g3 {[%clk 0:00:00]} 61. fxg3+ {[%clk 0:00:00]}  Kh3 {[%clk 0:00:00]} 62. f5 {[%clk 0:00:00]}  Kg4 {[%clk 0:00:00]} 63. f6 {[%clk 0:00:00]}  Kh3 {[%clk 0:00:00]} 64. f7 {[%clk 0:00:00]}  Kxg3 {[%clk 0:00:00]} 65. f8=Q {[%clk 0:00:00]}  Rxf8 {[%clk 0:00:00]} 66. a8=Q {[%clk 0:00:00]}  Rf5+ {[%clk 0:00:00]} 67. Kb6 {[%clk 0:00:00]}  Kg4 {[%clk 0:00:00]} 68. Qc8 {[%clk 0:00:00]}  Kg5 {[%clk 0:00:00]} 69. Rg2+ {[%clk 0:00:00]}  Kf6 {[%clk 0:00:00]} 70. Qf8+ {[%clk 0:00:00]}  Ke6 {[%clk 0:00:00]} 71. Re2+ {[%clk 0:00:00]}  Kd5 {[%clk 0:00:00]} 72. Qxf5+ {[%clk 0:00:00]}  Kd6 {[%clk 0:00:00]} 73. Re6+ {[%clk 0:00:00]}  Kd7 {[%clk 0:00:00]} 74. Qf7+ {[%clk 0:00:00]}  Kc8 {[%clk 0:00:00]} 75. Re8# {[%clk 0:00:00]} 1-0


[Site "https://www.chess.com"]

[Event "Titled Tuesday Blitz August 16 Early 2022"]
[White "Mirimanian, Hayk"]
[Black "Jiganchine, Roman"]
[WhiteFideId "4700180"]
[BlackFideId "2603667"]
[WhiteElo "2280"]
[BlackElo "2205"]
[Result "1-0"]
[Round "04"]
[TimeControl "180+2"]
[Date "2022.08.18"]
[WhiteClock "0:00:00"]
[BlackClock "0:00:00"]

1. e4 {[%clk 0:00:00]}  c6 {[%clk 0:00:00]} 2. Nc3 {[%clk 0:00:00]}  d5 {[%clk 0:00:00]} 3. Nf3 {[%clk 0:00:00]}  dxe4 {[%clk 0:00:00]} 4. Nxe4 {[%clk 0:00:00]}  Nf6 {[%clk 0:00:00]} 5. Qe2 {[%clk 0:00:00]}  Nxe4 {[%clk 0:00:00]} 6. Qxe4 {[%clk 0:00:00]}  Qd5 {[%clk 0:00:00]} 7. Bd3 {[%clk 0:00:00]}  Qxe4+ {[%clk 0:00:00]} 8. Bxe4 {[%clk 0:00:00]}  Nd7 {[%clk 0:00:00]} 9. d4 {[%clk 0:00:00]}  Nf6 {[%clk 0:00:00]} 10. Bd3 {[%clk 0:00:00]}  e6 {[%clk 0:00:00]} 11. O-O {[%clk 0:00:00]}  Bd6 {[%clk 0:00:00]} 12. Bg5 {[%clk 0:00:00]}  O-O {[%clk 0:00:00]} 13. Rad1 {[%clk 0:00:00]}  b6 {[%clk 0:00:00]} 14. c4 {[%clk 0:00:00]}  Bb7 {[%clk 0:00:00]} 15. Ne5 {[%clk 0:00:00]}  c5 {[%clk 0:00:00]} 16. Bxf6 {[%clk 0:00:00]}  gxf6 {[%clk 0:00:00]} 17. Nd7 {[%clk 0:00:00]}  Rfd8 {[%clk 0:00:00]} 18. dxc5 {[%clk 0:00:00]}  Bxc5 {[%clk 0:00:00]} 19. Nxf6+ {[%clk 0:00:00]}  Kg7 {[%clk 0:00:00]} 20. Nh5+ {[%clk 0:00:00]}  Kh6 {[%clk 0:00:00]} 21. Ng3 {[%clk 0:00:00]}  f5 {[%clk 0:00:00]} 22. Bc2 {[%clk 0:00:00]}  Kg5 {[%clk 0:00:00]} 23. Rfe1 {[%clk 0:00:00]}  Kf6 {[%clk 0:00:00]} 24. Kf1 {[%clk 0:00:00]}  Rac8 {[%clk 0:00:00]} 25. Nh5+ {[%clk 0:00:00]}  Kf7 {[%clk 0:00:00]} 26. Nf4 {[%clk 0:00:00]}  Rd6 {[%clk 0:00:00]} 27. Rxd6 {[%clk 0:00:00]}  Bxd6 {[%clk 0:00:00]} 28. Nxe6 {[%clk 0:00:00]}  Kf6 {[%clk 0:00:00]} 29. b3 {[%clk 0:00:00]}  Bb4 {[%clk 0:00:00]} 30. Re2 {[%clk 0:00:00]}  Re8 {[%clk 0:00:00]} 31. Nd4 {[%clk 0:00:00]}  Rxe2 {[%clk 0:00:00]} 32. Nxe2 {[%clk 0:00:00]}  Bc5 {[%clk 0:00:00]} 33. f4 {[%clk 0:00:00]}  a5 {[%clk 0:00:00]} 34. Ng3 {[%clk 0:00:00]}  Bc8 {[%clk 0:00:00]} 35. Ke2 {[%clk 0:00:00]}  h6 {[%clk 0:00:00]} 36. Kd3 {[%clk 0:00:00]}  Bd6 {[%clk 0:00:00]} 37. Ne2 {[%clk 0:00:00]}  Bb7 {[%clk 0:00:00]} 38. g3 {[%clk 0:00:00]}  Be4+ {[%clk 0:00:00]} 39. Kd2 {[%clk 0:00:00]}  Bb4+ {[%clk 0:00:00]} 40. Nc3 {[%clk 0:00:00]}  Bc6 {[%clk 0:00:00]} 41. Bd3 {[%clk 0:00:00]}  Bf3 {[%clk 0:00:00]} 42. Kc2 {[%clk 0:00:00]}  h5 {[%clk 0:00:00]} 43. Na4 {[%clk 0:00:00]}  h4 {[%clk 0:00:00]} 44. gxh4 {[%clk 0:00:00]}  Be1 {[%clk 0:00:00]} 45. Nxb6 {[%clk 0:00:00]}  Bxh4 {[%clk 0:00:00]} 46. Nd7+ {[%clk 0:00:00]}  Ke7 {[%clk 0:00:00]} 47. Ne5 {[%clk 0:00:00]}  Kf6 {[%clk 0:00:00]} 48. Nxf3 {[%clk 0:00:00]} 1-0


[Site "https://www.chess.com"]

[Event "Titled Tuesday Blitz August 16 Early 2022"]
[White "Namitbir Singh Walia"]
[Black "Tarasova, Viktoriya"]
[WhiteFideId "35071068"]
[BlackFideId "4175840"]
[WhiteElo "1664"]
[BlackElo "2182"]
[Result "1-0"]
[Round "04"]
[TimeControl "180+2"]
[Date "2022.08.18"]
[WhiteClock "0:00:00"]
[BlackClock "0:00:00"]

1. e4 {[%clk 0:00:00]}  e5 {[%clk 0:00:00]} 2. Nf3 {[%clk 0:00:00]}  Nc6 {[%clk 0:00:00]} 3. Bc4 {[%clk 0:00:00]}  Bc5 {[%clk 0:00:00]} 4. O-O {[%clk 0:00:00]}  d6 {[%clk 0:00:00]} 5. h3 {[%clk 0:00:00]}  Nf6 {[%clk 0:00:00]} 6. Re1 {[%clk 0:00:00]}  O-O {[%clk 0:00:00]} 7. c3 {[%clk 0:00:00]}  Bb6 {[%clk 0:00:00]} 8. d3 {[%clk 0:00:00]}  h6 {[%clk 0:00:00]} 9. Nbd2 {[%clk 0:00:00]}  Be6 {[%clk 0:00:00]} 10. a4 {[%clk 0:00:00]}  a5 {[%clk 0:00:00]} 11. Bb3 {[%clk 0:00:00]}  Bxb3 {[%clk 0:00:00]} 12. Qxb3 {[%clk 0:00:00]}  Nd7 {[%clk 0:00:00]} 13. Nf1 {[%clk 0:00:00]}  Nc5 {[%clk 0:00:00]} 14. Qc2 {[%clk 0:00:00]}  Ne6 {[%clk 0:00:00]} 15. Be3 {[%clk 0:00:00]}  Bxe3 {[%clk 0:00:00]} 16. Nxe3 {[%clk 0:00:00]}  Nf4 {[%clk 0:00:00]} 17. Rad1 {[%clk 0:00:00]}  Qf6 {[%clk 0:00:00]} 18. Nf5 {[%clk 0:00:00]}  Ne7 {[%clk 0:00:00]} 19. Nxe7+ {[%clk 0:00:00]}  Qxe7 {[%clk 0:00:00]} 20. d4 {[%clk 0:00:00]}  Qf6 {[%clk 0:00:00]} 21. Re3 {[%clk 0:00:00]}  Rfe8 {[%clk 0:00:00]} 22. Qb3 {[%clk 0:00:00]}  exd4 {[%clk 0:00:00]} 23. Nxd4 {[%clk 0:00:00]}  Qg6 {[%clk 0:00:00]} 24. Rg3 {[%clk 0:00:00]}  Qxe4 {[%clk 0:00:00]} 25. Kh2 {[%clk 0:00:00]}  Rab8 {[%clk 0:00:00]} 26. Qb5 {[%clk 0:00:00]}  Qe5 {[%clk 0:00:00]} 27. Nf5 {[%clk 0:00:00]}  Ng6 {[%clk 0:00:00]} 28. Rd5 {[%clk 0:00:00]}  Qf6 {[%clk 0:00:00]} 29. Qxa5 {[%clk 0:00:00]}  b6 {[%clk 0:00:00]} 30. Qb5 {[%clk 0:00:00]}  Re5 {[%clk 0:00:00]} 31. Rxe5 {[%clk 0:00:00]}  dxe5 {[%clk 0:00:00]} 32. Qd3 {[%clk 0:00:00]}  Rd8 {[%clk 0:00:00]} 33. Qe4 {[%clk 0:00:00]}  Kh8 {[%clk 0:00:00]} 34. Rf3 {[%clk 0:00:00]}  Qe6 {[%clk 0:00:00]} 35. g3 {[%clk 0:00:00]}  Rd2 {[%clk 0:00:00]} 36. b4 {[%clk 0:00:00]}  Qd7 {[%clk 0:00:00]} 37. Ne3 {[%clk 0:00:00]}  Kh7 {[%clk 0:00:00]} 38. Nc4 {[%clk 0:00:00]}  Rd5 {[%clk 0:00:00]} 39. Ne3 {[%clk 0:00:00]}  Rd2 {[%clk 0:00:00]} 40. h4 {[%clk 0:00:00]}  Kg8 {[%clk 0:00:00]} 41. h5 {[%clk 0:00:00]}  Nf8 {[%clk 0:00:00]} 42. Qxe5 {[%clk 0:00:00]}  Ne6 {[%clk 0:00:00]} 43. Nf5 {[%clk 0:00:00]}  f6 {[%clk 0:00:00]} 44. Qe4 {[%clk 0:00:00]}  Ng5 {[%clk 0:00:00]} 45. Qa8+ {[%clk 0:00:00]}  Kh7 {[%clk 0:00:00]} 46. Rf4 {[%clk 0:00:00]}  Rd1 {[%clk 0:00:00]} 47. Ne3 {[%clk 0:00:00]}  Re1 {[%clk 0:00:00]} 48. Qg2 {[%clk 0:00:00]}  Qd2 {[%clk 0:00:00]} 49. g4 {[%clk 0:00:00]} 1-0


[Site "https://www.chess.com"]